bitfinex/quotes_ETHUSD_20250324
["timestamp","ask_amount","ask_price","bid_price","bid_amount"]
[1742796612890,0.35365764,2072.2,2071.8,5.2054501]
[1742796612891,4.82595,2072.2,2071.8,5.2054501]
[1742796613091,4.82611,2072.1,2071.8,5.2054501]
[1742796613306,4.82648,2071.9,2071.8,5.2054501]
[1742796613515,4.82648,2071.9,2071.8,4.6554501]
[1742796616209,4.82631,2072.0,2071.2,10.24]
[1742796616210,4.82765,2071.4,2071.3,4.6554501]
[1742796617386,4.82765,2071.4,2070.7,10.24]
[1742796617387,4.82824,2071.2,2070.7,4.6554501]
[1742796617599,4.82883,2070.9,2070.7,4.6554501]
[1742796618010,4.82905,2070.8,2070.7,4.6554501]
[1742796619687,4.83015,2070.4,2070.2,14.8954501]
[1742796619879,4.83015,2070.4,2070.2,4.6554501]
[1742796620479,9.66024,2070.4,2070.2,4.6554501]
[1742796620699,4.83021,2070.3,2070.2,4.6554501]
[1742796622514,0.35411445,2070.5,2070.2,4.6554501]
[1742796622711,4.83021,2070.3,2070.2,4.6554501]
[1742796623078,4.83092,2070.0,2069.8,4.6554501]
[1742796623277,4.83101,2070.0,2069.8,4.6554501]
[1742796623681,4.83115,2069.9,2069.8,4.6554501]
[1742796624810,4.83115,2069.9,2069.2,12.1132]
[1742796624811,4.8323,2069.5,2069.2,14.8954501]
[1742796624993,4.83241,2069.4,2069.2,4.6554501]
[1742796625182,4.83232,2069.4,2069.2,4.6554501]
[1742796625377,4.83212,2069.5,2069.2,4.6554501]
[1742796625586,9.6644,2069.5,2069.2,4.6554501]
[1742796625817,4.83239,2069.4,2069.2,4.6554501]
[1742796626110,4.8311,2070.0,2069.3,4.83254]
[1742796626317,4.83036,2070.3,2069.5,0.55]
[1742796626496,4.82998,2070.4,2069.8,0.55]
[1742796626694,4.83022,2070.3,2069.8,0.55]
[1742796626953,4.82933,2070.7,2069.6,21.2694301]
[1742796626954,4.82951,2070.6,2069.6,16.4376501]
[1742796627153,4.83116,2069.9,2069.6,16.4376501]
[1742796627305,4.83116,2069.9,2069.6,6.1976501]
[1742796627635,4.83101,2070.0,2069.6,6.1976501]
[1742796627843,4.83092,2070.0,2069.6,6.1976501]
[1742796628314,4.83128,2069.9,2069.6,6.1976501]
[1742796628726,4.83128,2069.9,2069.6,6.0130951]
[1742796628930,4.82975,2070.5,2069.7,0.55]
[1742796629137,9.66161,2070.1,2069.8,4.6554501]
[1742796629307,4.8308,2070.1,2069.8,4.6554501]
[1742796629504,4.83097,2070.0,2069.8,4.6554501]
[1742796629711,0.36229253,2070.7,2069.9,0.55]
[1742796629911,4.8303,2070.3,2069.9,15.4454501]
[1742796630117,4.83054,2070.2,2069.9,15.4454501]
[1742796630307,4.83024,2070.3,2070.0,10.24]
[1742796630832,0.35833563,2070.7,2070.1,5.2054501]
[1742796631040,4.82994,2070.5,2070.1,5.2054501]
[1742796631209,4.83015,2070.4,2070.2,4.6554501]
[1742796631405,4.83021,2070.3,2070.2,4.6554501]
[1742796633854,4.83136,2069.9,2069.7,4.6554501]
[1742796634169,4.83138,2069.8,2069.7,4.6554501]
[1742796634959,4.83231,2069.4,2069.3,4.6554501]
[1742796635545,4.83189,2069.6,2069.3,4.6554501]
[1742796635748,4.83155,2069.8,2069.3,4.6554501]
[1742796635950,4.83082,2070.1,2069.4,14.8954501]
[1742796636150,4.83023,2070.3,2069.5,10.79]
[1742796636355,4.83172,2069.7,2069.5,10.79]
[1742796636963,4.83141,2069.8,2069.5,10.79]
[1742796637159,4.83167,2069.7,2069.5,10.79]
[1742796637355,4.83141,2069.8,2069.5,10.79]
[1742796637559,4.83011,2070.4,2069.7,0.55]
[1742796637862,4.83048,2070.2,2069.7,2.0698]
[1742796638264,100.0,2070.0,2069.7,2.0698]
[1742796638429,104.83103,2070.0,2069.7,2.0698]
[1742796638633,4.83129,2069.9,2069.6,0.55]
[1742796638863,104.83103,2070.0,2069.7,0.14857492]
[1742796638864,100.0,2070.0,2069.7,0.14857492]
[1742796639037,100.0,2070.0,2069.9,2.0698]
[1742796639038,90.45416726,2070.0,2069.9,2.0698]
[1742796639236,90.45416726,2070.0,2069.9,17.2886519]
[1742796639841,90.45416726,2070.0,2069.9,18.4675019]
[1742796640043,90.45416726,2070.0,2069.9,27.8795019]
[1742796640256,90.45416726,2070.0,2069.9,33.2606519]
[1742796641436,90.45416726,2070.0,2069.9,38.24718825]
[1742796641836,90.45416726,2070.0,2069.9,33.2606519]
[1742796644380,90.45416726,2070.0,2069.9,17.9175019]
[1742796644542,90.45416726,2070.0,2069.9,7.6775019]
[1742796644740,90.45416726,2070.0,2069.9,6.1577019]
[1742796645250,95.28507726,2070.0,2069.9,6.1577019]
[1742796646859,90.45416726,2070.0,2069.6,6.01]
[1742796647156,4.83161,2069.7,2069.6,6.01]
[1742796647537,4.83245,2069.4,2069.2,6.01]
[1742796648362,1.617,2069.9,2069.2,6.01]
[1742796648558,4.83166,2069.7,2069.2,6.01]
[1742796648762,4.83139,2069.8,2069.2,6.01]
[1742796648958,4.83219,2069.5,2069.2,6.01]
[1742796649553,9.66448,2069.5,2069.2,6.01]
[1742796649753,4.83219,2069.5,2069.2,6.01]
[1742796649948,4.83241,2069.4,2069.2,6.01]
[1742796651064,4.83255,2069.3,2069.2,6.01]
[1742796651442,4.83241,2069.4,2069.2,6.01]
[1742796652668,9.66493,2069.4,2069.2,6.01]
[1742796652873,4.83241,2069.4,2069.2,6.01]
[1742796653277,9.6649,2069.4,2069.2,6.01]
[1742796653577,4.83255,2069.3,2069.2,6.01]
[1742796654078,4.83245,2069.4,2069.2,6.01]
[1742796654460,4.83245,2069.4,2069.3,0.13823087]
[1742796654461,9.66498,2069.4,2069.3,0.13823087]
[1742796654647,9.66498,2069.4,2069.2,6.01]
[1742796654850,4.83245,2069.4,2069.2,6.01]
[1742796655779,4.83209,2069.5,2069.2,6.01]
[1742796656176,4.83164,2069.7,2069.3,0.1381795]
[1742796656380,90.45416726,2070.0,2069.2,10.84262]
[1742796656381,4.83128,2069.9,2069.2,10.84262]
[1742796656578,4.8318,2069.7,2069.3,6.01]
[1742796656745,4.8318,2069.7,2069.3,6.14812812]
[1742796656946,4.83221,2069.5,2069.3,6.14812812]
[1742796657277,4.83231,2069.4,2069.3,6.14812812]
[1742796657647,4.83231,2069.4,2069.3,6.01]
[1742796657853,84.44416726,2069.0,2068.9,10.24]
[1742796658180,84.44416726,2069.0,2068.8,9.289]
[1742796658583,84.44416726,2069.0,2068.7,1.5198]
[1742796659363,84.44416726,2069.0,2068.7,6.35366]
[1742796659885,84.44416726,2069.0,2068.8,0.13766578]
[1742796661650,89.27743726,2069.0,2068.8,0.13766578]
[1742796661856,4.83348,2068.9,2068.8,0.13766578]
[1742796662086,4.83399,2068.7,2068.4,6.01]
[1742796662298,4.83407,2068.7,2068.4,6.01]
[1742796662604,4.83419,2068.6,2068.4,6.01]
[1742796662758,4.834,2068.7,2068.4,6.01]
[1742796662954,4.83429,2068.6,2068.4,6.01]
[1742796663163,4.834,2068.7,2068.4,6.01]
[1742796663383,4.83362,2068.9,2068.4,6.01]
[1742796663595,4.83383,2068.8,2068.4,6.01]
[1742796664089,4.83348,2068.9,2068.4,6.01]
[1742796664259,89.27741726,2069.0,2068.5,0.55]
[1742796664260,84.44416726,2069.0,2068.5,0.55]
[1742796664459,84.44416726,2069.0,2068.8,4.83371]
[1742796664660,84.44416726,2069.0,2068.7,2.2027]
[1742796664886,84.44416726,2069.0,2068.7,1.6527]
[1742796665588,84.44416726,2069.0,2068.9,5.38348]
[1742796666287,84.44416726,2069.0,2068.9,0.55]
[1742796666586,84.44416726,2069.0,2068.9,8.996]
[1742796666756,84.44416726,2069.0,2068.9,14.36948]
[1742796667389,84.44416726,2069.0,2068.9,30.61948]
[1742796667597,78.43416726,2069.0,2068.9,34.813463]
[1742796668089,78.43416726,2069.0,2068.9,10.84348]
[1742796668456,89.27516726,2070.0,2069.0,0.55]
[1742796668659,84.44416726,2070.0,2069.5,4.83186]
[1742796668875,84.44416726,2070.0,2069.5,6.01]
[1742796669285,84.44416726,2070.0,2069.6,4.83185]
[1742796669589,84.44416726,2070.0,2069.6,4.83184]
[1742796669777,84.44416726,2070.0,2069.9,4.83115]
[1742796670364,84.44416726,2070.0,2069.9,19.72315]
[1742796670987,84.44416726,2070.0,2069.9,14.879]
[1742796671375,84.44416726,2070.0,2069.9,19.71015]
[1742796671774,84.44416726,2070.0,2069.9,20.26015]
[1742796672097,1.5798,2071.3,2070.0,5.38088]
[1742796672285,4.82672,2071.8,2070.6,4.82937]
[1742796672489,4.828,2071.3,2070.7,8.873]
[1742796672691,4.82802,2071.3,2070.7,8.873]
[1742796672897,0.36844141,2071.3,2070.7,8.873]
[1742796673093,1.5798,2071.9,2070.8,10.83893]
[1742796673284,4.82825,2071.2,2070.8,6.01]
[1742796673594,4.82822,2071.2,2070.8,6.01]
[1742796673770,4.82852,2071.1,2070.8,6.01]
[1742796674199,4.82864,2071.0,2070.8,6.01]
[1742796674547,4.82896,2070.9,2070.5,6.01]
[1742796674698,4.82905,2070.8,2070.5,6.01]
[1742796674993,4.82905,2070.8,2070.6,0.10162196]
[1742796675198,4.82835,2071.1,2070.6,0.10162196]
[1742796675391,4.82918,2070.8,2070.6,0.10162196]
[1742796675584,4.82928,2070.7,2070.6,0.10162196]
[1742796676017,9.65961,2070.5,2070.1,6.01]
[1742796676370,4.83006,2070.4,2070.1,6.01]
[1742796676570,4.82954,2070.6,2070.1,6.01]
[1742796676798,4.83011,2070.4,2070.1,6.01]
[1742796677217,4.83045,2070.2,2070.1,6.01]
[1742796677726,4.83032,2070.3,2070.1,6.01]
[1742796677727,9.6607,2070.3,2070.1,6.01]
[1742796677877,4.83045,2070.2,2070.1,6.01]
[1742796679584,4.82978,2070.5,2070.1,6.01]
[1742796679784,7.82819,2071.2,2070.1,6.01]
[1742796679785,4.83034,2070.3,2070.1,6.01]
[1742796679984,4.83045,2070.2,2070.1,6.01]
[1742796681005,4.83034,2070.3,2070.1,6.01]
[1742796681200,9.66078,2070.3,2070.1,6.01]
[1742796681425,1.5798,2071.1,2070.1,6.01]
[1742796681622,4.82992,2070.5,2070.1,6.01]
[1742796681778,5.19463135,2070.6,2070.1,6.01]
[1742796681779,4.82968,2070.6,2070.1,6.01]
[1742796682103,1.5798,2071.1,2070.2,8.571]
[1742796682306,4.82906,2070.8,2070.3,7.6198]
[1742796682896,9.65824,2070.8,2070.3,7.6198]
[1742796683097,4.82906,2070.8,2070.3,7.6198]
[1742796683407,4.82915,2070.8,2070.3,7.6198]
[1742796683604,1.5798,2071.1,2070.3,7.6198]
[1742796683906,11.23675,2071.1,2070.4,4.82987]
[1742796684108,4.82891,2070.9,2070.3,12.44997]
[1742796684284,4.82891,2070.9,2070.3,7.6198]
[1742796684778,4.82942,2070.7,2070.3,7.6198]
[1742796684973,4.82942,2070.7,2070.3,6.01]
[1742796685172,4.82953,2070.6,2070.3,6.01]
[1742796685409,4.82984,2070.5,2070.3,6.01]
[1742796685908,4.83022,2070.3,2070.0,6.01]
[1742796686105,4.82992,2070.5,2070.0,6.01]
[1742796686304,14.85621,2071.1,2070.0,6.01]
[1742796686305,9.6602,2070.4,2070.0,6.01]
[1742796686493,4.8301,2070.4,2070.0,6.01]
[1742796687105,6.40825,2071.1,2070.4,4.82983]
[1742796687281,4.82906,2070.8,2070.5,14.428]
[1742796687481,5.18584966,2071.2,2070.2,6.01]
[1742796687482,4.82951,2070.6,2070.2,6.01]
[1742796687681,4.83011,2070.4,2070.2,6.01]
[1742796687886,4.83021,2070.3,2070.2,6.01]
[1742796688296,4.83009,2070.4,2070.2,6.01]
[1742796688502,4.83021,2070.3,2070.2,6.01]
[1742796689509,4.83081,2070.1,2069.9,6.01]
[1742796689881,4.83081,2070.1,2070.0,0.10940487]
[1742796691688,4.83068,2070.1,2070.0,0.10940487]
[1742796691910,4.83054,2070.2,2070.0,0.10940487]
[1742796692083,4.83068,2070.1,2070.0,0.10940487]
[1742796692483,4.83047,2070.2,2070.0,0.10940487]
[1742796692689,9.66104,2070.2,2070.0,0.10940487]
[1742796692931,4.83047,2070.2,2070.0,0.10940487]
[1742796693135,4.83068,2070.1,2070.0,0.10940487]
[1742796693930,6.36648,2070.1,2070.0,0.10940487]
[1742796694136,4.83188,2069.6,2069.3,6.01]
[1742796694739,4.83188,2069.6,2069.4,0.11258114]
[1742796695537,4.83208,2069.5,2069.4,0.11258114]
[1742796696232,9.66393,2069.6,2069.4,0.11258114]
[1742796696388,4.83188,2069.6,2069.4,0.11258114]
[1742796696589,4.83208,2069.5,2069.4,0.11258114]
[1742796697129,4.83235,2069.4,2068.9,14.145]
[1742796697290,4.83143,2069.8,2069.4,0.11258114]
[1742796697493,1.5358,2070.1,2069.5,6.01]
[1742796697797,4.83129,2069.9,2069.5,6.12258114]
[1742796698114,9.66255,2069.9,2069.5,6.12258114]
[1742796698312,4.83126,2069.9,2069.5,6.12258114]
[1742796698510,4.8314,2069.8,2069.5,6.12258114]
[1742796699016,4.83163,2069.7,2069.5,6.12258114]
[1742796699313,4.83185,2069.6,2069.5,6.12258114]
[1742796700923,4.83185,2069.6,2069.5,0.11258114]
[1742796701292,4.83235,2069.4,2069.0,14.067]
[1742796701489,4.83213,2069.5,2069.0,14.067]
[1742796701705,9.66443,2069.5,2069.0,6.01]
[1742796702089,9.66435,2069.5,2069.0,6.01]
[1742796702290,4.83021,2070.4,2069.0,10.99653635]
[1742796702495,9.66174,2070.1,2069.4,4.83211]
[1742796702797,4.83106,2070.0,2069.5,7.997]
[1742796702997,4.83106,2070.0,2069.6,6.01]
[1742796704400,4.83085,2070.1,2069.6,6.01]
[1742796704600,1.5234,2070.5,2069.6,6.01]
[1742796704601,1.5234,2070.5,2069.6,7.6067]
[1742796704829,4.83037,2070.3,2069.6,7.6067]
[1742796705029,4.82924,2070.8,2069.8,4.83121]
[1742796705201,4.83009,2070.4,2069.8,4.83121]
[1742796705401,4.82987,2070.5,2069.9,0.11422126]
[1742796705601,4.82987,2070.5,2069.9,10.95536126]
[1742796705796,4.82933,2070.7,2070.0,10.84085]
[1742796706036,9.65961,2070.5,2070.0,13.93]
[1742796706240,4.83045,2070.2,2070.0,6.01]
[1742796706433,4.83068,2070.1,2070.0,6.01]
[1742796707100,4.83045,2070.2,2069.7,10.24]
[1742796707101,4.83126,2069.9,2069.7,6.01]
[1742796707703,4.83138,2069.8,2069.7,6.01]
[1742796710041,4.83126,2069.9,2069.3,6.01]
[1742796710218,4.83216,2069.5,2069.3,6.01]
[1742796710734,4.83256,2069.3,2069.0,13.956]
[1742796710932,4.83256,2069.3,2069.0,6.14]
[1742796711634,4.83301,2069.1,2069.0,6.14]
[1742796712433,4.83281,2069.2,2069.0,6.14]
[1742796712750,4.83301,2069.1,2069.0,6.14]
[1742796713138,4.83277,2069.3,2068.7,6.14]
[1742796713350,4.83271,2069.3,2068.7,10.97372]
[1742796713549,4.83232,2069.4,2068.7,17.838142]
[1742796714223,4.83232,2069.4,2068.8,4.8337]
[1742796714948,4.83197,2069.6,2068.9,4.83331]
[1742796715123,4.83216,2069.5,2068.9,4.83346]
[1742796715551,4.83234,2069.4,2068.8,4.8336]
[1742796715844,4.83216,2069.5,2068.9,4.83339]
[1742796716052,4.8313,2069.9,2069.0,0.04832595]
[1742796716238,4.8313,2069.9,2069.2,6.40886]
[1742796716239,4.83139,2069.8,2069.2,6.40886]
[1742796716442,4.832,2069.6,2069.2,1.5763]
[1742796716846,4.83155,2069.8,2069.2,1.5763]
[1742796716847,4.83164,2069.7,2069.2,1.5763]
[1742796717448,9.66337,2069.7,2069.2,1.5763]
[1742796717648,4.83164,2069.7,2069.2,1.62462199]
[1742796717953,4.83128,2069.9,2069.2,8.40019764]
[1742796718149,4.83128,2069.9,2069.2,13.23278764]
[1742796718354,4.83125,2069.9,2069.3,4.8325]
[1742796718758,4.83139,2069.8,2069.2,8.40017764]
[1742796719129,4.83125,2069.9,2069.3,6.92301676]
[1742796719330,4.83125,2069.9,2069.4,0.04831752]
[1742796719630,4.83095,2070.0,2069.4,4.8322]
[1742796719952,4.83116,2069.9,2069.3,11.75542676]
[1742796720127,4.83095,2070.0,2069.4,9.66443]
[1742796720328,4.83065,2070.2,2069.5,4.83199]
[1742796720329,4.83064,2070.2,2069.5,4.83199]
[1742796720540,4.83084,2070.1,2069.5,4.83199]
[1742796720750,4.83064,2070.2,2069.6,7.577]
[1742796720950,4.83091,2070.0,2069.6,7.577]
[1742796721342,4.83078,2070.1,2069.6,7.577]
[1742796722035,9.66166,2070.1,2069.6,9.43995637]
[1742796722234,4.83044,2070.3,2069.6,14.27171637]
[1742796722441,4.83046,2070.2,2069.6,14.27171637]
[1742796722635,4.83046,2070.2,2069.6,14.27167637]
[1742796722835,4.83073,2070.1,2069.6,9.43995637]
[1742796723059,4.82955,2070.6,2069.4,7.17279358]
[1742796723060,4.83154,2069.8,2069.4,0.9525699]
[1742796723257,4.83116,2069.9,2069.6,7.528]
[1742796723456,4.83045,2070.2,2069.2,2.1263]
[1742796723653,4.8315,2069.8,2069.2,6.95903]
[1742796724160,4.8315,2069.8,2069.3,7.515]
[1742796724348,4.83069,2070.1,2069.5,4.83205]
[1742796724559,4.8311,2070.0,2069.3,12.34743]
[1742796724859,4.8313,2069.9,2069.4,1.447373]
[1742796725063,9.66264,2069.9,2069.3,12.3474]
[1742796725356,4.83104,2070.0,2069.3,12.3474]
[1742796725659,4.83104,2070.0,2069.4,4.8322]
[1742796725839,4.83104,2070.0,2069.3,7.515]
[1742796725840,4.83116,2069.9,2069.3,17.17988]
[1742796726028,4.8314,2069.8,2069.3,12.3474]
[1742796726228,4.8314,2069.8,2069.2,2.1263]
[1742796726229,4.83163,2069.7,2069.2,6.40895]
[1742796726434,4.83163,2069.7,2069.6,6.14]
[1742796727029,4.8314,2069.8,2069.6,6.14]
[1742796727232,4.83105,2070.0,2069.6,6.14]
[1742796727429,4.83117,2069.9,2069.6,6.14]
[1742796727630,4.83032,2070.3,2069.6,6.14]
[1742796727631,4.83045,2070.2,2069.6,6.14]
[1742796727827,0.36410973,2070.4,2069.7,4.83141]
[1742796728038,4.82975,2070.5,2069.7,6.14]
[1742796728255,4.83138,2069.8,2069.7,6.14]
[1742796728456,4.83031,2070.3,2069.7,6.14]
[1742796728658,9.66203,2070.0,2069.7,6.14]
[1742796728860,4.82989,2070.5,2069.7,6.14]
[1742796729048,4.83027,2070.3,2069.7,6.14]
[1742796729357,4.83048,2070.2,2069.7,6.14]
[1742796729547,4.83121,2069.9,2069.7,6.14]
[1742796729741,4.83125,2069.9,2069.7,6.14]
[1742796730437,4.83138,2069.8,2069.7,6.14]
[1742796731042,4.83219,2069.5,2069.1,6.14]
[1742796731242,4.83125,2069.9,2069.1,6.14]
[1742796731440,9.66546,2069.3,2069.1,6.14]
[1742796731646,4.83278,2069.2,2069.1,6.14]
[1742796731952,4.83234,2069.4,2069.1,6.14]
[1742796732152,9.66487,2069.4,2069.1,6.14]
[1742796732353,4.83256,2069.3,2069.1,6.14]
[1742796732933,4.83234,2069.4,2069.1,6.14]
[1742796732934,4.83242,2069.4,2069.1,6.14]
[1742796733361,4.83257,2069.3,2069.1,6.14]
[1742796733942,4.83211,2069.5,2069.1,6.14]
[1742796734667,4.83183,2069.7,2069.1,6.14]
[1742796734668,4.83252,2069.4,2069.1,6.14]
[1742796734868,4.83202,2069.6,2069.1,6.14]
[1742796735166,4.8322,2069.5,2069.1,6.14]
[1742796735460,4.8324,2069.4,2069.1,6.14]
[1742796735653,9.66485,2069.4,2069.1,6.14]
[1742796735853,9.66482,2069.4,2069.1,6.14]
[1742796736036,4.8324,2069.4,2069.1,6.14]
[1742796736236,9.66482,2069.4,2069.1,6.14]
[1742796736465,4.8324,2069.4,2069.1,6.14]
[1742796736967,9.66482,2069.4,2069.1,6.14]
[1742796737132,4.8324,2069.4,2069.1,6.14]
[1742796737864,4.83203,2069.6,2069.1,6.14]
[1742796738261,4.83157,2069.8,2069.1,11.5869]
[1742796738468,4.83163,2069.7,2069.1,11.5869]
[1742796738640,4.83187,2069.6,2069.1,6.754]
[1742796740268,4.83187,2069.6,2069.1,6.14]
[1742796741456,4.83212,2069.5,2069.1,6.14]
[1742796741841,4.83247,2069.4,2069.1,6.14]
[1742796742373,9.66437,2069.5,2068.9,10.84344]
[1742796742535,4.83212,2069.5,2068.9,10.84344]
[1742796742740,4.83212,2069.5,2068.9,13.352621]
[1742796742965,9.66437,2069.5,2068.9,8.519181]
[1742796743142,4.83212,2069.5,2068.9,8.519181]
[1742796743342,9.6644,2069.5,2068.9,13.352661]
[1742796743543,9.66434,2069.5,2068.9,13.352661]
[1742796743843,4.83264,2069.3,2068.9,13.128]
[1742796744443,4.83244,2069.4,2068.9,13.128]
[1742796744644,9.66499,2069.4,2068.9,13.128]
[1742796744838,4.83272,2069.3,2068.9,13.128]
[1742796745359,4.83224,2069.5,2068.9,10.84337]
[1742796745571,4.83191,2069.6,2069.1,9.0]
[1742796746563,4.83261,2069.3,2069.1,9.0]
[1742796746764,4.83278,2069.2,2069.1,9.0]
[1742796747872,7.83278,2069.2,2069.1,9.0]
[1742796748460,4.83453,2068.5,2068.2,13.043]
[1742796748778,4.83372,2068.8,2068.2,6.01]
[1742796748976,4.83465,2068.4,2068.2,6.01]
[1742796749450,4.83488,2068.3,2068.2,6.01]
[1742796750263,9.66858,2068.6,2068.2,6.10304295]
[1742796750466,4.83454,2068.5,2068.2,6.10304295]
[1742796750671,4.83467,2068.4,2068.2,6.10304295]
[1742796752095,4.83488,2068.3,2068.2,6.10304295]
[1742796752476,4.8347,2068.4,2068.2,6.10304295]
[1742796754792,9.66954,2068.4,2068.2,6.10304295]
[1742796754947,4.8347,2068.4,2068.2,6.10304295]
[1742796755677,9.66945,2068.4,2068.2,6.10304295]
[1742796755883,4.83488,2068.3,2068.2,6.10304295]
[1742796756890,4.8347,2068.4,2068.2,6.10304295]
[1742796757953,5.084,2068.1,2064.6,3.70195026]
[1742796758153,5.084,2068.1,2065.3,4.85255697]
[1742796758154,4.84052,2065.9,2065.3,4.85255697]
[1742796758356,4.83874,2066.7,2065.9,4.84033]
[1742796758558,1.6292,2067.1,2066.0,7.141]
[1742796758761,3.0,2067.4,2066.1,34.6294932]
[1742796758978,4.83699,2067.4,2066.2,4.8398]
[1742796759168,4.83816,2066.9,2066.3,7.129]
[1742796759367,4.83858,2066.8,2066.4,1.196879]
[1742796760583,4.83817,2066.9,2066.4,7.104]
[1742796760751,9.67654,2066.9,2066.4,7.104]
[1742796760952,9.67656,2066.9,2066.4,7.104]
[1742796761487,4.8384,2066.8,2066.4,7.104]
[1742796761788,4.83843,2066.8,2066.4,7.104]
[1742796762407,4.83843,2066.8,2066.3,6.3744]
[1742796762567,7.83719,2067.4,2066.4,7.058]
[1742796762568,4.83794,2067.0,2066.4,7.058]
[1742796762891,4.83787,2067.1,2066.6,4.83879]
[1742796763075,4.83787,2067.1,2066.5,4.83907]
[1742796763281,4.83817,2066.9,2066.4,13.068]
[1742796763479,4.83843,2066.8,2066.4,6.01]
[1742796763663,4.83909,2066.5,2066.4,6.01]
[1742796763863,4.83909,2066.5,2066.2,7.041]
[1742796764064,4.83792,2067.0,2066.2,7.041]
[1742796764065,4.83956,2066.3,2066.2,7.041]
[1742796764286,4.83956,2066.3,2066.0,1.535]
[1742796764480,4.83956,2066.3,2066.0,8.568]
[1742796764974,9.67932,2066.3,2066.0,8.568]
[1742796765174,4.83981,2066.2,2066.0,8.568]
[1742796765486,4.8398,2066.2,2065.9,7.018]
[1742796765870,4.83957,2066.3,2065.9,7.018]
[1742796766067,4.83989,2066.2,2065.9,7.018]
[1742796766568,4.84017,2066.1,2066.0,7.004]
[1742796766969,4.84037,2066.0,2065.8,6.99]
[1742796767174,4.8405,2065.9,2065.8,6.99]
[1742796767372,4.8405,2065.9,2065.7,6.01]
[1742796767573,4.8412,2065.7,2065.4,6.988]
[1742796767775,4.8412,2065.7,2065.4,6.99]
[1742796767971,9.68229,2065.7,2065.4,6.99]
[1742796768173,4.84109,2065.7,2065.4,6.99]
[1742796768463,4.84131,2065.6,2065.0,4.84249]
[1742796768694,4.84149,2065.5,2065.1,6.974]
[1742796768891,9.68313,2065.5,2065.0,9.80581605]
[1742796769096,1.6292,2066.3,2065.1,4.8907934]
[1742796769394,4.84064,2065.9,2065.3,4.84181]
[1742796769611,4.84064,2065.9,2065.3,7.163104]
[1742796769762,4.84097,2065.7,2065.3,2.321294]
[1742796770500,4.83996,2066.2,2065.4,6.952]
[1742796770501,4.8415,2065.5,2065.4,6.952]
[1742796770899,4.84098,2065.7,2065.1,6.01]
[1742796770900,4.84207,2065.3,2065.1,6.01]
[1742796771202,4.84207,2065.3,2065.2,6.947]
[1742796771781,4.8422,2065.2,2064.9,26.742]
[1742796771981,9.68457,2065.2,2064.9,26.742]
[1742796772176,4.84277,2065.0,2064.7,7.545]
[1742796772383,9.6856,2065.0,2064.8,6.932]
[1742796772603,4.84277,2065.0,2064.8,6.932]
[1742796772775,4.84284,2064.9,2064.8,6.932]
[1742796772969,4.84284,2064.9,2064.7,6.01]
[1742796772970,4.84308,2064.8,2064.7,6.01]
[1742796773802,4.84345,2064.7,2064.4,8.4638]
[1742796774002,4.84286,2064.9,2064.4,8.4638]
[1742796774209,6.35917,2065.5,2064.4,8.4638]
[1742796774210,4.84324,2064.8,2064.4,8.4638]
[1742796774703,4.84319,2064.8,2064.5,6.89]
[1742796775077,4.84238,2065.1,2064.5,11.7337]
[1742796775285,4.84303,2064.9,2064.5,6.89]
[1742796775603,4.84319,2064.8,2064.5,6.89]
[1742796775803,4.84333,2064.7,2064.5,6.89]
[1742796776002,4.84373,2064.6,2064.1,7.5558]
[1742796776207,4.84373,2064.6,2064.4,6.868]
[1742796776381,4.84378,2064.5,2064.1,9.4326295]
[1742796776589,4.84263,2065.0,2064.0,26.752]
[1742796776590,4.84404,2064.4,2064.0,26.752]
[1742796776881,4.84355,2064.6,2064.1,13.27543]
[1742796777086,4.84337,2064.7,2064.2,0.55]
[1742796777709,9.68691,2064.7,2064.3,6.875]
[1742796778006,4.84344,2064.7,2064.3,6.875]
[1742796778203,4.84332,2064.7,2064.2,5.39435]
[1742796778401,1.5177,2065.1,2064.3,6.854]
[1742796778625,4.84378,2064.5,2064.3,6.854]
[1742796778785,4.84372,2064.6,2064.3,6.854]
[1742796779172,4.84354,2064.7,2064.3,6.854]
[1742796779375,1.5177,2065.1,2064.3,6.854]
[1742796779687,4.84382,2064.5,2064.1,1.5458]
[1742796779886,4.84382,2064.5,2064.2,6.843]
[1742796781279,4.84411,2064.4,2064.2,6.843]
[1742796781737,4.84361,2064.6,2064.2,6.843]
[1742796781886,4.84308,2064.8,2064.3,4.84404]
[1742796782093,4.84308,2064.8,2064.4,4.84402]
[1742796782305,4.84308,2064.8,2064.3,6.167474]
[1742796782912,9.68635,2064.8,2064.3,6.167474]
[1742796783212,4.84332,2064.7,2064.3,6.167474]
[1742796783416,4.84278,2065.0,2064.3,1.323284]
[1742796783597,4.84309,2064.8,2064.4,4.84388]
[1742796783804,9.68627,2064.8,2064.3,6.167504]
[1742796784027,4.84274,2065.0,2064.4,4.84381]
[1742796784238,4.84214,2065.2,2064.5,5.39378]
[1742796784442,4.84214,2065.2,2064.6,6.22244774]
[1742796784659,4.84214,2065.2,2064.7,11.60219]
[1742796784809,9.68451,2065.2,2064.7,6.759]
[1742796784999,4.84214,2065.2,2064.8,6.748]
[1742796785198,4.84239,2065.1,2064.8,6.748]
[1742796785436,4.8422,2065.2,2064.8,6.748]
[1742796785636,4.84242,2065.1,2064.8,6.748]